bitfinex/quotes_BTCUSD_20220101
["timestamp","ask_amount","ask_price","bid_price","bid_amount"]
[1641052740965,7.303e-05,47238.0,47237.0,0.347233]
[1641052742616,7.303e-05,47238.0,47237.0,0.36599325]
[1641052742818,0.05301203,47238.0,47237.0,0.36599325]
[1641052743418,0.05301203,47238.0,47237.0,0.01876025]
[1641052743617,0.05301203,47238.0,47237.0,0.03887201]
[1641052743817,0.05301203,47238.0,47237.0,0.02011176]
[1641052744621,0.05301203,47238.0,47237.0,0.32533402]
[1641052744817,0.05301203,47238.0,47237.0,0.30522226]
[1641052745020,7.303e-05,47238.0,47237.0,0.30522226]
[1641052745487,0.81905373,47238.0,47237.0,0.30522226]
[1641052745683,0.81905373,47238.0,47237.0,0.32474961]
[1641052746084,0.87199273,47238.0,47237.0,0.32474961]
[1641052746484,0.81905373,47238.0,47237.0,0.32474961]
[1641052746685,0.81905373,47238.0,47237.0,0.34407167]
[1641052746886,0.81905373,47238.0,47237.0,0.01932206]
[1641052747088,0.05301203,47238.0,47237.0,0.01932206]
[1641052747486,0.87199273,47238.0,47237.0,0.01932206]
[1641052747888,0.87199273,47238.0,47236.0,0.32457827]
[1641052748488,0.87199273,47238.0,47237.0,0.30931495]
[1641052749122,0.87199273,47238.0,47236.0,0.07164041]
[1641052749421,0.05301203,47238.0,47236.0,0.07164041]
[1641052749622,0.81745969,47237.0,47236.0,0.07164041]
[1641052749819,0.81745969,47237.0,47236.0,0.05294026]
[1641052750923,0.05301203,47238.0,47236.0,0.05294026]
[1641052751922,0.05301203,47238.0,47236.0,0.35878052]
[1641052752623,7.303e-05,47238.0,47236.0,0.37957732]
[1641052754380,7.303e-05,47238.0,47236.0,0.40042188]
[1641052754680,7.303e-05,47238.0,47236.0,0.39801]
[1641052754880,7.303e-05,47238.0,47236.0,0.37716544]
[1641052755680,7.303e-05,47238.0,47236.0,0.3960253]
[1641052755886,7.303e-05,47238.0,47236.0,0.07180012]
[1641052757020,7.303e-05,47238.0,47236.0,0.05294026]
[1641052758824,7.303e-05,47238.0,47236.0,0.35795649]
[1641052759525,7.303e-05,47238.0,47237.0,0.30348532]
[1641052760789,7.303e-05,47238.0,47237.0,0.32544995]
[1641052761786,7.303e-05,47238.0,47237.0,0.34557776]
[1641052762086,7.303e-05,47238.0,47237.0,0.32361313]
[1641052762686,7.303e-05,47238.0,47237.0,0.34319639]
[1641052762886,7.303e-05,47238.0,47237.0,0.32306858]
[1641052763688,7.303e-05,47238.0,47237.0,0.34421443]
[1641052764034,7.303e-05,47238.0,47237.0,0.32463117]
[1641052764425,7.303e-05,47238.0,47237.0,0.02114585]
[1641052764825,0.35969282,47238.0,47237.0,0.04168061]
[1641052765025,0.35969282,47238.0,47237.0,0.02053476]
[1641052765826,0.40969282,47238.0,47237.0,0.02053476]
[1641052766029,0.50969282,47238.0,47237.0,0.02053476]
[1641052766226,0.40969282,47238.0,47237.0,0.02053476]
[1641052766428,0.05007303,47238.0,47237.0,0.02053476]
[1641052766627,7.303e-05,47238.0,47236.0,0.05294026]
[1641052767629,7.303e-05,47238.0,47236.0,0.28916356]
[1641052769977,7.303e-05,47238.0,47236.0,0.05294026]
[1641052771281,0.052939,47239.0,47236.0,0.05294026]
[1641052771534,0.052939,47239.0,47237.0,0.052948]
[1641052771724,0.047939,47239.0,47237.0,0.052948]
[1641052775127,0.047939,47239.0,47237.0,0.10589268]
[1641052775583,0.047939,47239.0,47237.0,0.45946355]
[1641052775985,0.047939,47239.0,47237.0,0.10589268]
[1641052783182,0.81745969,47238.0,47237.0,0.10589268]
[1641052785885,0.81745969,47238.0,47237.0,0.41663644]
[1641052786185,0.86539869,47239.0,47237.0,0.41663644]
[1641052786547,0.70156271,47238.0,47237.0,0.41663644]
[1641052786948,0.70156271,47238.0,47237.0,0.43536692]
[1641052787945,0.70156271,47238.0,47237.0,0.45515026]
[1641052788145,0.70156271,47238.0,47237.0,0.43641978]
[1641052788344,0.74950171,47239.0,47237.0,0.12567602]
[1641052788946,0.00895477,47240.0,47238.0,1.01121807]
[1641052789146,0.00895477,47240.0,47239.0,0.00129931]
[1641052789346,0.81745969,47241.0,47239.0,1.05369931]
[1641052789347,0.58593752,47241.0,47239.0,1.05369931]
[1641052789548,0.55881762,47245.0,47240.0,0.75127098]
[1641052789748,0.55881762,47245.0,47243.0,0.25684544]
[1641052789947,0.00018257,47244.0,47243.0,0.25684544]
[1641052790273,0.00018257,47244.0,47243.0,0.25809225]
[1641052790473,0.00018257,47244.0,47243.0,0.00124681]
[1641052791074,0.00018257,47244.0,47243.0,0.34416976]
[1641052792077,0.00018257,47244.0,47243.0,0.36575071]
[1641052793475,0.00018257,47244.0,47243.0,0.38767649]
[1641052793675,0.00018257,47244.0,47243.0,0.36609554]
[1641052794137,0.00018257,47244.0,47243.0,0.36374153]
[1641052794937,0.00018257,47244.0,47243.0,0.01957177]
[1641052795739,0.00018257,47244.0,47243.0,0.04118274]
[1641052796038,0.00018257,47244.0,47243.0,0.02161097]
[1641052796439,0.05311557,47244.0,47243.0,0.02161097]
[1641052796840,0.05311557,47244.0,47242.0,0.052924]
[1641052797243,0.00016432,47243.0,47241.0,0.12440777]
[1641052797639,0.51014606,47242.0,47241.0,0.12440777]
[1641052797917,0.074016,47242.0,47241.0,0.12440777]
[1641052798317,0.074016,47242.0,47241.0,0.105848]
[1641052798919,0.00014606,47242.0,47241.0,0.105848]
[1641052803439,0.04807906,47244.0,47241.0,0.105848]
[1641052809345,0.04807906,47244.0,47242.0,0.05820448]
[1641052809550,0.40504374,47244.0,47242.0,0.05820448]
[1641052810449,0.04807906,47244.0,47242.0,0.05820448]
[1641052814396,0.58509547,47243.0,47242.0,0.00121598]
[1641052814795,0.63317453,47244.0,47242.0,0.00121598]
[1641052814996,0.63317453,47244.0,47241.0,0.15878495]
[1641052815496,0.04807906,47244.0,47241.0,0.15878495]
[1641052817138,0.63317453,47244.0,47241.0,0.15878495]
[1641052818343,0.04807906,47244.0,47241.0,0.15878495]
[1641052818541,0.03945709,47245.0,47244.0,0.91214736]
[1641052818739,0.70191456,47247.0,47245.0,1.37361136]
[1641052818939,0.0003,47252.0,47247.0,1.07]
[1641052818940,0.0003,47249.0,47247.0,1.07]
[1641052819139,0.71094806,47250.0,47248.0,0.80124215]
[1641052819339,0.70201456,47250.0,47248.0,1.13407873]
[1641052819539,0.0001,47250.0,47249.0,0.00126951]
[1641052819741,0.00309886,47255.0,47249.0,1.17187399]
[1641052819941,0.00309886,47255.0,47251.0,0.06129319]
[1641052820139,0.00309886,47255.0,47251.0,0.10369319]
[1641052820897,0.00309886,47255.0,47252.0,1.56825212]
[1641052821086,0.0003,47256.0,47254.0,0.22001036]
[1641052821288,0.0003,47256.0,47255.0,0.34303629]
[1641052821685,0.00055561,47256.0,47255.0,0.34303629]
[1641052822386,0.00055561,47256.0,47255.0,0.36422573]
[1641052822990,0.00045561,47256.0,47255.0,0.42422573]
[1641052823187,0.00045561,47256.0,47255.0,0.42545745]
[1641052823390,0.00045561,47256.0,47255.0,0.46785745]
[1641052823789,0.00045561,47256.0,47255.0,0.48878623]
[1641052824046,0.00045561,47256.0,47255.0,0.46759679]
[1641052824436,0.00045561,47256.0,47255.0,0.46856556]
[1641052825036,0.00045561,47256.0,47255.0,0.52677004]
[1641052825236,0.00045561,47256.0,47255.0,0.54782845]
[1641052825437,0.00025561,47256.0,47255.0,0.5759309]
[1641052825639,0.0004,47260.0,47259.0,1.20728222]
[1641052825838,0.0002,47262.0,47259.0,0.77151866]
[1641052825839,0.0002,47261.0,47259.0,0.77151866]
[1641052826043,0.0023,47269.0,47262.0,1.01]
[1641052826044,0.00860295,47266.0,47262.0,1.01]
[1641052826238,0.73632001,47278.0,47265.0,1.01]
[1641052826439,0.73632001,47278.0,47277.0,0.96011213]
[1641052826640,0.73632001,47278.0,47277.0,0.77953447]
[1641052826641,0.5,47278.0,47277.0,0.77953447]
[1641052826938,0.0001,47280.0,47279.0,0.06]
[1641052827137,0.0001,47280.0,47279.0,0.1024]
[1641052828395,0.58914134,47280.0,47279.0,0.46208295]
[1641052828793,0.58914134,47280.0,47279.0,0.51496587]
[1641052829193,0.58914134,47280.0,47279.0,0.51626124]
[1641052829998,0.58934134,47281.0,47279.0,0.53435703]
[1641052830194,0.0001,47285.0,47284.0,1.01]
[1641052830398,0.0001,47285.0,47284.0,2.89787474]
[1641052830593,0.0021,47289.0,47285.0,1.350846]
[1641052830792,0.0021,47289.0,47286.0,0.0424]
[1641052830996,0.0021,47289.0,47288.0,0.0012028]
[1641052831198,0.00106841,47291.0,47289.0,1.01]
[1641052831401,0.0021,47299.0,47290.0,2.35959483]
[1641052831402,0.00479886,47299.0,47290.0,2.35959483]
[1641052831641,0.00479886,47299.0,47292.0,0.0012179]
[1641052831643,0.0001,47293.0,47292.0,0.0012179]
[1641052831839,0.00479886,47299.0,47298.0,0.00128485]
[1641052832042,9.886e-05,47299.0,47298.0,0.04368485]
[1641052832241,0.31593531,47306.0,47298.0,0.28151935]
[1641052832438,0.002,47309.0,47298.0,0.61359361]
[1641052832439,0.00469886,47309.0,47298.0,0.61359361]
[1641052832640,0.00080334,47300.0,47299.0,0.3766363]
[1641052832839,0.00080334,47300.0,47299.0,0.04362304]
[1641052833240,0.51712985,47308.0,47300.0,1.01]
[1641052833441,0.51712985,47308.0,47306.0,0.30088958]
[1641052833642,0.51727592,47308.0,47307.0,0.35901579]
[1641052834439,0.51727592,47308.0,47307.0,0.37941449]
[1641052834642,0.8904787,47334.0,47307.0,0.37941449]
[1641052834643,0.002,47319.0,47309.0,1.33379407]
[1641052834843,0.05567185,47321.0,47318.0,0.00125013]
[1641052835040,0.05567185,47324.0,47319.0,0.0424]
[1641052835293,0.002,47329.0,47322.0,0.00123587]
[1641052835494,0.002,47329.0,47323.0,0.24697461]
[1641052835697,0.002,47329.0,47324.0,0.46087633]
[1641052835894,0.002,47329.0,47324.0,0.83466945]
[1641052836094,0.002,47329.0,47325.0,0.0424]
[1641052836295,0.002,47329.0,47327.0,0.00124637]
[1641052836500,0.002,47329.0,47328.0,0.8224]
[1641052836698,0.002,47329.0,47328.0,0.0424]
[1641052836897,0.00238341,47329.0,47328.0,0.0424]
[1641052837097,0.00238341,47329.0,47326.0,0.052835]
[1641052837098,0.00238341,47329.0,47326.0,0.052735]
[1641052837099,0.04364637,47327.0,47326.0,0.052735]
[1641052837296,2.20347681,47327.0,47321.0,0.105692]
[1641052837497,2.20382371,47327.0,47325.0,0.01874476]
[1641052837694,0.00032864,47326.0,47325.0,0.01874476]
[1641052837897,0.3477772,47326.0,47325.0,0.01864476]
[1641052838096,0.42164714,47326.0,47325.0,0.01864476]
[1641052838296,0.47164714,47326.0,47325.0,0.01864476]
[1641052838596,0.67164714,47326.0,47320.0,0.00902529]
[1641052838794,0.07386994,47323.0,47320.0,0.00902529]
[1641052839048,0.12386994,47323.0,47320.0,0.00902529]
[1641052839242,0.20688369,47323.0,47320.0,0.00902529]
[1641052839740,0.00027387,47323.0,47320.0,0.00902529]
[1641052840138,0.00027387,47323.0,47321.0,0.29526777]
[1641052840139,0.00037387,47323.0,47321.0,0.29526777]
[1641052840541,0.00037387,47323.0,47322.0,0.4842966]
[1641052840741,0.00037387,47323.0,47322.0,0.11167731]
[1641052841142,0.00037387,47323.0,47322.0,0.06927731]
[1641052841343,0.00037387,47323.0,47322.0,0.06799225]
[1641052842442,0.46899072,47323.0,47322.0,0.06799225]
[1641052842643,0.56899072,47323.0,47322.0,0.06799225]
[1641052843097,0.50012078,47323.0,47322.0,0.06799225]
[1641052843999,0.60012078,47323.0,47322.0,0.06799225]
[1641052844200,0.66899072,47323.0,47322.0,0.06799225]
[1641052844596,0.052868,47320.0,47317.0,0.00902536]
[1641052844796,0.84886994,47318.0,47317.0,0.00902536]
[1641052844998,0.11886994,47318.0,47317.0,0.00902536]
[1641052845197,0.26905252,47318.0,47317.0,0.00902536]
[1641052845598,0.52905252,47318.0,47317.0,0.00902536]
[1641052845998,0.62905252,47318.0,47309.0,0.34314038]
[1641052846199,0.1,47315.0,47309.0,0.34314038]
[1641052846399,0.1,47311.0,47309.0,0.36503492]
[1641052846647,1.1415719,47310.0,47309.0,0.3444031]
[1641052846851,1.1415719,47310.0,47308.0,0.10375821]
[1641052847045,1.8872203,47309.0,47308.0,0.10375821]
[1641052847248,0.99,47308.0,47303.0,0.02201]
[1641052847445,0.06886994,47304.0,47303.0,0.02201]
[1641052848048,0.1,47305.0,47303.0,0.02201]
[1641052848247,0.052884,47307.0,47303.0,0.02201]
[1641052848447,0.1,47305.0,47304.0,7.303e-05]
[1641052848648,0.05,47305.0,47304.0,7.303e-05]
[1641052848846,0.02045409,47306.0,47304.0,7.303e-05]
[1641052848847,0.07045409,47306.0,47304.0,7.303e-05]
[1641052849353,0.02045409,47306.0,47304.0,7.303e-05]
[1641052849549,0.102884,47307.0,47304.0,7.303e-05]
[1641052849748,0.41321416,47307.0,47304.0,7.303e-05]
[1641052850399,0.38200436,47307.0,47304.0,7.303e-05]
[1641052851596,0.36321416,47307.0,47304.0,7.303e-05]
[1641052852298,0.36321416,47307.0,47304.0,0.25212]
[1641052852497,0.46321416,47307.0,47304.0,7.303e-05]
[1641052852698,0.56321416,47307.0,47304.0,7.303e-05]
[1641052853500,0.58135456,47307.0,47304.0,0.00792428]
[1641052853899,0.97358337,47307.0,47304.0,0.00792428]
[1641052854129,0.97349338,47307.0,47304.0,0.00792428]
[1641052854331,0.97746283,47307.0,47304.0,0.00792428]
[1641052854534,1.09730381,47307.0,47304.0,0.00792428]
[1641052854734,0.97916341,47307.0,47304.0,0.00792428]
[1641052855433,1.00098824,47307.0,47304.0,0.00792428]
[1641052855630,0.98114726,47307.0,47304.0,0.00792428]
[1641052856431,0.98886994,47305.0,47304.0,0.00792428]
[1641052856633,1.13886994,47305.0,47304.0,0.00792428]
[1641052856831,0.15,47305.0,47304.0,0.00792428]
[1641052857432,0.42,47305.0,47304.0,0.00792428]
[1641052857633,0.15,47305.0,47304.0,0.00792428]
[1641052858088,0.05,47305.0,47304.0,0.00792428]
[1641052858291,0.378632,47306.0,47304.0,0.00792428]
[1641052858492,0.39723946,47306.0,47304.0,0.00792428]
[1641052858692,0.37725846,47306.0,47304.0,0.00792428]
[1641052858889,0.17725846,47306.0,47304.0,0.00792428]
[1641052859992,0.27725846,47306.0,47304.0,0.00792428]
[1641052860189,0.17725846,47306.0,47304.0,0.00792428]
[1641052860790,0.158651,47306.0,47304.0,0.00792428]
[1641052861553,0.258651,47306.0,47304.0,0.00792428]
[1641052863744,0.1,47306.0,47304.0,0.00792428]
[1641052864145,0.05,47306.0,47304.0,0.00792428]
[1641052864445,0.12586417,47307.0,47304.0,0.00792428]
[1641052864845,0.105746,47306.0,47304.0,0.00792428]
[1641052865496,0.06886994,47305.0,47304.0,0.00792428]
[1641052865896,0.15,47306.0,47304.0,0.00792428]
[1641052866095,0.202872,47306.0,47304.0,0.00792428]
[1641052866897,0.53686564,47306.0,47304.0,0.00792428]
[1641052867097,0.06886994,47305.0,47304.0,0.00792428]
[1641052867802,0.53686564,47306.0,47304.0,0.00792428]
[1641052867803,0.55666206,47306.0,47304.0,0.00792428]
[1641052868296,0.07266842,47306.0,47304.0,0.00792428]
[1641052868699,0.07240938,47306.0,47304.0,0.00792428]
[1641052869151,0.07240938,47306.0,47304.0,0.11366128]
[1641052869547,0.06240938,47306.0,47304.0,0.11366128]
[1641052870846,0.042872,47306.0,47304.0,0.11366128]
[1641052877739,0.042872,47306.0,47305.0,0.31829117]
[1641052877942,0.11200908,47307.0,47306.0,0.00122218]
[1641052877943,0.00626208,47307.0,47306.0,0.00122218]
[1641052878142,0.00626208,47307.0,47306.0,1.35206818]
[1641052878339,0.00626208,47307.0,47306.0,1.7300563]
[1641052878539,0.00626208,47307.0,47306.0,0.7200563]
[1641052878739,0.00626208,47307.0,47306.0,1.03017043]
[1641052878942,0.00626208,47307.0,47306.0,0.34206818]
[1641052879140,0.00626208,47307.0,47306.0,0.00122218]
[1641052879840,0.00626208,47307.0,47306.0,0.99260603]
[1641052880039,0.00626208,47307.0,47306.0,0.36260603]
[1641052880892,0.00626208,47307.0,47306.0,0.00122218]
[1641052882191,0.06249741,47309.0,47306.0,0.7966224]
[1641052882391,0.06249741,47309.0,47306.0,0.3266224]
[1641052882591,0.06249741,47309.0,47307.0,0.10572428]
[1641052882992,0.06249741,47309.0,47308.0,0.31891915]
[1641052883293,0.06249741,47309.0,47307.0,0.10572428]
[1641052883691,0.06249741,47309.0,47308.0,0.32779738]
[1641052884548,0.06249741,47309.0,47307.0,0.10572428]
[1641052886447,0.06249741,47309.0,47308.0,0.32202031]
[1641052887348,0.05623512,47309.0,47307.0,0.10572428]
[1641052888187,1.67705499,47308.0,47307.0,0.052862]
[1641052888392,1.67705499,47308.0,47304.0,0.00785125]
[1641052888588,0.052877,47307.0,47304.0,0.00785125]
[1641052888789,0.06886994,47305.0,47304.0,0.00785125]
[1641052890289,0.06886994,47305.0,47298.0,0.11276372]
[1641052890590,0.205759,47303.0,47299.0,0.00914254]
[1641052890992,0.205759,47303.0,47300.0,0.00014607]
[1641052891644,0.29274772,47301.0,47300.0,0.00014607]
[1641052892045,0.34274772,47301.0,47300.0,0.00014607]
[1641052892544,0.44274772,47301.0,47300.0,0.00014607]
[1641052892844,0.46128954,47301.0,47300.0,0.00014607]
[1641052893848,1.01559681,47298.0,47297.0,0.0127684]
[1641052894048,1.16559681,47298.0,47297.0,0.0127684]
[1641052894248,1.25799681,47298.0,47297.0,0.0127684]
[1641052894447,0.72000745,47297.0,47292.0,0.00897838]
[1641052894649,1.21297062,47293.0,47292.0,0.00897838]
[1641052894846,0.43537062,47293.0,47290.0,0.01264226]
[1641052895047,0.43537062,47293.0,47290.0,0.01128349]
[1641052895048,0.51940068,47293.0,47290.0,0.01128349]
[1641052895292,0.51940068,47293.0,47291.0,0.00016432]
[1641052895694,1.33920555,47293.0,47291.0,0.00016432]
[1641052895896,1.26766875,47293.0,47291.0,0.00016432]
[1641052896197,0.38886994,47292.0,47291.0,0.00016432]
[1641052896395,0.43886994,47292.0,47291.0,0.00016432]
[1641052896693,0.43886994,47292.0,47291.0,0.00022739]
[1641052896694,0.59493864,47292.0,47291.0,0.00022739]
[1641052896893,0.44,47291.0,47290.0,0.00433596]
[1641052897093,0.22176594,47291.0,47290.0,0.00433596]
[1641052897299,0.83,47290.0,47286.0,0.00897851]
[1641052897495,0.35,47287.0,47286.0,0.00897851]
[1641052897697,0.16280753,47288.0,47286.0,0.00897851]
[1641052897895,0.31938143,47286.0,47283.0,0.123123]
[1641052898095,0.51938143,47286.0,47283.0,0.123123]
[1641052898294,0.052903,47285.0,47283.0,0.123123]
[1641052898495,0.47885092,47284.0,47283.0,0.123123]
[1641052898699,0.48437566,47284.0,47283.0,0.123123]
[1641052898894,0.48437566,47284.0,47283.0,0.12326906]
[1641052898895,0.58437566,47284.0,47283.0,0.12326906]
[1641052899936,0.60513814,47284.0,47283.0,0.12326906]
[1641052900937,0.53,47283.0,47281.0,0.00135877]
[1641052901137,0.052906,47282.0,47281.0,0.00135877]
[1641052901343,0.10807989,47282.0,47281.0,0.00135877]
[1641052901636,0.15807989,47282.0,47281.0,0.00135877]
[1641052902237,0.10517389,47282.0,47281.0,0.00281327]
[1641052902636,0.05517389,47282.0,47281.0,0.00281327]
[1641052903290,0.60098589,47282.0,47281.0,0.00281327]
[1641052903491,0.11098589,47282.0,47271.0,0.374827]
[1641052903692,0.15872,47280.0,47271.0,0.3219239]
[1641052903894,0.15872,47280.0,47272.0,0.00020084]
[1641052904090,0.26669981,47280.0,47272.0,0.00020084]
[1641052904292,0.35,47279.0,47272.0,0.00020084]
[1641052904491,0.35,47279.0,47272.0,0.00301411]
[1641052904492,0.052904,47277.0,47272.0,0.00301411]
[1641052904891,0.05,47274.0,47273.0,0.00018258]
[1641052905093,0.05573112,47274.0,47273.0,0.00018258]
[1641052905292,0.00573112,47274.0,47273.0,0.00018258]
[1641052905492,0.00566805,47274.0,47273.0,0.00018258]
[1641052905792,0.05857905,47274.0,47273.0,0.00018258]
[1641052906655,0.05576578,47274.0,47273.0,0.00154135]
[1641052907057,0.05576578,47274.0,47273.0,0.00018258]
[1641052908057,0.05440701,47274.0,47273.0,0.00018258]
[1641052908660,0.05440701,47274.0,47273.0,0.00524315]
[1641052911600,0.05440701,47274.0,47273.0,0.33643343]
[1641052911797,0.05440701,47274.0,47273.0,0.00524315]
[1641052911998,0.05440701,47274.0,47273.0,0.32333777]
[1641052912198,0.05440701,47274.0,47273.0,0.32461404]
[1641052912999,0.05440701,47274.0,47273.0,0.00524315]
[1641052915260,0.34,47273.0,47271.0,0.00059754]
[1641052915461,0.39538788,47272.0,47271.0,0.00059754]
[1641052915660,0.38527706,47272.0,47271.0,0.00059754]
[1641052915862,0.39050267,47272.0,47271.0,0.00059754]
[1641052916160,0.46204445,47272.0,47271.0,0.00059754]
[1641052917159,0.48009374,47272.0,47271.0,0.00059754]
[1641052917991,0.44050267,47272.0,47271.0,0.00059754]
[1641052918193,0.27776958,47272.0,47271.0,0.00059754]
[1641052918592,0.17776958,47272.0,47271.0,0.00059754]
[1641052919396,0.15813761,47272.0,47271.0,0.00059754]
[1641052920396,0.53927303,47272.0,47271.0,0.00059754]
[1641052920595,0.63927303,47272.0,47271.0,0.00059754]
[1641052921197,0.65853851,47272.0,47271.0,0.00059754]
[1641052921399,0.8,47271.0,47269.0,0.00509162]
[1641052921666,0.51934194,47271.0,47269.0,0.00509162]
[1641052921864,1.01934194,47271.0,47269.0,0.00509162]
[1641052922070,1.0399406,47271.0,47269.0,0.00509162]
[1641052923065,1.06138351,47271.0,47269.0,0.00509162]
[1641052923265,0.72144291,47271.0,47269.0,0.00509162]
[1641052923465,0.72144291,47271.0,47263.0,0.00011]
[1641052923466,1.07,47270.0,47263.0,0.00011]
[1641052923667,0.35,47266.0,47263.0,0.00011]
[1641052923864,0.35,47266.0,47265.0,0.00014606]
[1641052924064,1.01,47265.0,47263.0,0.00011]
[1641052924266,0.11126994,47264.0,47263.0,0.00011]
[1641052924467,0.0424,47264.0,47263.0,0.00011]
[1641052924672,0.64751498,47264.0,47257.0,0.00022]
[1641052925066,0.74751498,47264.0,47257.0,0.00022]
[1641052925892,0.55804198,47264.0,47257.0,0.00022]
[1641052926094,0.57125482,47264.0,47257.0,0.10022]
[1641052926392,0.07125482,47264.0,47263.0,0.00612686]
[1641052926597,0.01832782,47264.0,47263.0,1.48258246]
[1641052927093,0.01832782,47264.0,47263.0,0.77258246]
[1641052927297,0.052906,47266.0,47263.0,0.77258246]
[1641052927494,0.052906,47266.0,47264.0,0.052906]
[1641052927694,0.052906,47266.0,47264.0,0.10581112]
[1641052928299,0.052906,47266.0,47265.0,0.32403479]
[1641052928495,0.052906,47266.0,47264.0,0.42565815]
[1641052928695,0.052906,47266.0,47264.0,0.10581112]
[1641052928899,0.052906,47266.0,47264.0,0.052906]
[1641052929155,0.052906,47266.0,47263.0,0.00487238]
[1641052930054,0.102906,47266.0,47263.0,0.00487238]
[1641052930255,0.105837,47265.0,47263.0,0.00487238]
[1641052931359,0.105837,47265.0,47263.0,0.05778938]
[1641052932558,0.105837,47265.0,47263.0,0.11070261]
[1641052936556,0.105837,47265.0,47264.0,0.23873126]
[1641052938150,0.105837,47265.0,47263.0,0.11070261]
[1641052938351,0.155837,47265.0,47263.0,0.05778938]
[1641052938551,0.205837,47265.0,47263.0,0.00487238]
[1641052938752,0.2134819,47265.0,47263.0,0.00487238]
[1641052940296,0.57655078,47265.0,47263.0,0.00487238]
[1641052940698,0.67655078,47265.0,47263.0,0.00487238]
[1641052941301,0.38068717,47264.0,47263.0,0.00487238]
[1641052941507,0.69566093,47265.0,47263.0,0.00487238]
[1641052941508,1.08806093,47265.0,47263.0,0.00487238]
[1641052941701,0.1,47264.0,47262.0,0.00022]
[1641052942300,0.052931,47263.0,47260.0,0.00022]
[1641052942503,0.06886994,47261.0,47260.0,0.00022]
[1641052942705,0.06886994,47261.0,47259.0,0.00011]
[1641052942901,0.06886994,47260.0,47259.0,0.00011]
[1641052943302,0.50886994,47260.0,47252.0,0.00022]
[1641052943501,0.06886994,47259.0,47252.0,0.00022]
[1641052943903,0.45903025,47259.0,47252.0,0.00022]
[1641052944145,0.60143025,47259.0,47252.0,0.00022]
[1641052944545,0.06886994,47256.0,47252.0,0.00022]
[1641052944744,0.5114433,47256.0,47252.0,0.00022]
[1641052944944,0.5114433,47256.0,47255.0,7.303e-05]
[1641052944945,0.56848557,47256.0,47255.0,7.303e-05]
[1641052945145,0.66848557,47256.0,47255.0,7.303e-05]
[1641052945346,0.66848557,47256.0,47254.0,9.129e-05]
[1641052945545,0.49019628,47255.0,47254.0,9.129e-05]
[1641052945746,0.8740509,47255.0,47254.0,9.129e-05]
[1641052945944,1.03087196,47255.0,47254.0,9.129e-05]
[1641052946148,0.69995434,47255.0,47254.0,9.129e-05]
[1641052946345,0.96,47254.0,47252.0,0.00022]
[1641052946547,0.26126994,47254.0,47252.0,0.00022]
[1641052946746,0.26635935,47254.0,47252.0,0.00022]
[1641052947348,0.07536752,47253.0,47252.0,0.00022]
[1641052948995,0.45627179,47253.0,47252.0,0.00022]
[1641052949195,0.55627179,47253.0,47252.0,0.00022]
[1641052949595,0.052942,47252.0,47250.0,0.00022]
[1641052949795,0.06886994,47251.0,47250.0,0.00022]
[1641052949995,0.152942,47252.0,47250.0,0.00022]
[1641052950297,0.06886994,47251.0,47250.0,0.00029303]
[1641052950895,0.15952156,47252.0,47250.0,0.00029303]
[1641052951560,0.052942,47252.0,47250.0,0.00029303]
[1641052952350,0.06886994,47251.0,47250.0,0.00029303]
[1641052953253,0.06886994,47251.0,47249.0,0.00011]
[1641052953254,0.51,47250.0,47249.0,0.00011]
[1641052953455,0.06886994,47250.0,47249.0,0.00011]
[1641052953650,0.16886994,47250.0,47249.0,0.00011]
[1641052954651,0.06886994,47250.0,47249.0,0.00011]
[1641052955052,0.06886994,47250.0,47249.0,0.00498378]
[1641052955501,0.45024383,47250.0,47249.0,0.00498378]
[1641052955704,0.052947,47249.0,47247.0,0.00011]
[1641052955901,0.38676973,47248.0,47247.0,0.00011]
[1641052956103,0.38676973,47248.0,47242.0,0.003]
[1641052956104,1.01,47247.0,47242.0,0.003]
[1641052956302,0.35,47244.0,47242.0,0.003]
[1641052956603,0.45,47244.0,47242.0,0.003]
[1641052956802,0.4924,47244.0,47242.0,0.003]
[1641052957402,0.72296003,47244.0,47242.0,0.003]
[1641052958001,0.51252959,47244.0,47242.0,0.003]
[1641052958208,0.41252959,47244.0,47242.0,0.003]
[1641052958402,0.4313135,47244.0,47242.0,0.003]
[1641052958604,0.41118391,47244.0,47242.0,0.003]
[1641052959252,0.79419386,47244.0,47242.0,0.003]
[1641052959452,0.81507388,47244.0,47242.0,0.003]
[1641052959654,0.81507388,47244.0,47231.0,0.002]
[1641052959655,0.79628997,47244.0,47231.0,0.002]
[1641052959853,0.052954,47234.0,47231.0,0.002]
[1641052960054,0.052954,47234.0,47232.0,0.00032864]
[1641052960256,0.34675563,47233.0,47232.0,0.00032864]
[1641052960553,0.55206694,47233.0,47232.0,0.00032864]
[1641052961355,0.57154021,47233.0,47232.0,0.00032864]
[1641052962155,0.882964,47232.0,47231.0,0.002]
[1641052962461,0.882964,47232.0,47224.0,0.00011]
[1641052962462,0.105934,47229.0,47224.0,0.00011]
[1641052962656,0.41268045,47225.0,47224.0,0.00011]
[1641052963097,0.51268045,47225.0,47224.0,0.00011]
[1641052963505,0.5753948,47225.0,47224.0,0.00011]
[1641052963899,0.6753948,47225.0,47224.0,0.00011]
[1641052964103,0.8346878,47225.0,47218.0,0.00011]
[1641052964400,0.28707052,47225.0,47219.0,0.00023735]
[1641052964602,0.052975,47222.0,47219.0,0.00023735]
[1641052965202,0.052975,47222.0,47218.0,0.31128]
[1641052965607,0.052975,47222.0,47219.0,0.052965]
[1641052966402,0.105912,47227.0,47221.0,1.01]
[1641052966658,0.01889021,47229.0,47223.0,0.05419524]
[1641052966855,0.00016432,47228.0,47224.0,0.41802068]
[1641052967059,0.00016432,47228.0,47226.0,0.28024066]
[1641052967258,0.01889021,47229.0,47227.0,1.32142994]
[1641052967456,0.01889021,47229.0,47228.0,1.38562068]
[1641052967655,0.6106446,47231.0,47228.0,1.52802068]
[1641052967955,0.6106446,47231.0,47230.0,0.00127525]
[1641052968156,0.01989737,47231.0,47230.0,1.42929593]
[1641052968457,0.06051675,47243.0,47231.0,1.01]
[1641052968656,0.06051675,47243.0,47241.0,0.3622863]
[1641052969355,0.00758375,47243.0,47241.0,0.3622863]
[1641052969555,0.00830647,47246.0,47241.0,0.61386409]
[1641052969755,0.00830647,47246.0,47242.0,0.052932]
[1641052969959,0.00025561,47245.0,47243.0,0.0424]
[1641052970158,0.00025561,47245.0,47244.0,1.39819553]
[1641052970390,0.00830647,47246.0,47244.0,1.44059553]
[1641052970591,0.00830647,47246.0,47245.0,1.68984556]
[1641052970792,0.00830647,47246.0,47245.0,1.73224556]
[1641052970993,0.00858034,47246.0,47245.0,1.73224556]
[1641052971389,0.00858034,47246.0,47245.0,0.43055713]
[1641052972391,0.00027387,47246.0,47245.0,0.43055713]
[1641052972593,0.00027387,47246.0,47245.0,0.45141273]